Cogmind - Beta 14 @@@ ROGUE MODE // 2024.11.26 @ 13:58:48 Player: MarKhan Result: Destroyed by S-27 Virus with Autogun Performance ------------- Evolutions (5) 2500 Regions Visited (11) 2200 Robots Destroyed (0) 0 Value Destroyed (0) 0 Prototype IDs (0) 0 Alien Tech Used (0) 0 Bonus (3187) 3187 TOTAL SCORE: 7887 Bonus ------- Pacifist 1987 Entered Garrisons 200 Entered DSFs 1000 Cogmind --------- Core Integrity 0/1000 Matter 110/300 Energy 98/100 System Corruption 0% Temperature Cool (0) Movement Core (50) Location -5/Factory Parts ------- > --- POWER (11) ------- (None) > --- PROPULSION (2) --- (None) > --- UTILITY (2) ------ (None) > --- WEAPON (2) ------- (None) > --- INVENTORY (5) ---- (None) Peak State ------------ None Favorites ----------- Power None Propulsion None Utility None Weapon None Build | -11 -10 -9 -8 -7 -7 -7 -6 -6 -5 -5 -5 ------- Run | Yrd Mat Mat Mat Fac DSF Gar Fac DSF Fac Was Fac Slots Evolved 10 | . . 2 2 2 . . 2 . 2 . . Power 10 | . . 2 2 2 . . 2 . 2 . . Propulsion . | . . . . . . . . . . . . Utility . | . . . . . . . . . . . . Weapon . | . . . . . . . . . . . . Parts Attached . | . . . . . . . . . . . . Power . | . . . . . . . . . . . . Engine . | . . . . . . . . . . . . Core . | . . . . . . . . . . . . Reactor . | . . . . . . . . . . . . Propulsion . | . . . . . . . . . . . . Treads . | . . . . . . . . . . . . Leg . | . . . . . . . . . . . . Wheel . | . . . . . . . . . . . . Hover . | . . . . . . . . . . . . Flight . | . . . . . . . . . . . . Utility . | . . . . . . . . . . . . Device . | . . . . . . . . . . . . Storage . | . . . . . . . . . . . . Processor . | . . . . . . . . . . . . Hackware . | . . . . . . . . . . . . Protection . | . . . . . . . . . . . . Artifact . | . . . . . . . . . . . . Weapon . | . . . . . . . . . . . . Energy Gun . | . . . . . . . . . . . . Energy Cannon . | . . . . . . . . . . . . Ballistic Gun . | . . . . . . . . . . . . Ballistic Cannon . | . . . . . . . . . . . . Launcher . | . . . . . . . . . . . . Special Weapon . | . . . . . . . . . . . . Impact Weapon . | . . . . . . . . . . . . Slashing Weapon . | . . . . . . . . . . . . Piercing Weapon . | . . . . . . . . . . . . Special Melee Weapon . | . . . . . . . . . . . . Unidentified Prototypes . | . . . . . . . . . . . . Parts Lost . | . . . . . . . . . . . . Power . | . . . . . . . . . . . . Propulsion . | . . . . . . . . . . . . Utility . | . . . . . . . . . . . . Weapon . | . . . . . . . . . . . . Highest Loss Streak . | . . . . . . . . . . . . To Critical Strikes . | . . . . . . . . . . . . Average Slot Usage (%) . | . . . . . . . . . . . . Peak Build Rating . | . . . . . . . . . . . . Average Rating . | . . . . . . . . . . . . On Entrance . | . . . . . . . . . . . . Naked Turns 617 | . 52 56 71 61 29 84 11 44 73 67 69 Heaviest Build . | . . . . . . . . . . . . Greatest Support 3 | 3 3 3 3 3 3 3 3 3 3 3 3 Greatest Overweight (x) . | . . . . . . . . . . . . Average Overweight (x) . | . . . . . . . . . . . . Largest Inventory Capacity 5 | 5 5 5 5 5 5 5 5 5 5 5 5 Average Capacity 5 | 5 5 5 5 5 5 5 5 5 5 5 5 Most Carried . | . . . . . . . . . . . . Average Carried . | . . . . . . . . . . . . Final Capacity 5 | 5 5 5 5 5 5 5 5 5 5 5 5 Final Carried . | . . . . . . . . . . . . Class Distribution -------------------- 100% | Mutant Dominant Class ---------------- Mutant | -10/Materials Mutant | -9/Materials Mutant | -8/Materials Mutant | -7/Factory Mutant | -7/DSF Mutant | -7/Garrison Mutant | -6/Factory Mutant | -6/DSF Mutant | -5/Factory Mutant | -5/Waste Mutant | -5/Factory Resources | -11 -10 -9 -8 -7 -7 -7 -6 -6 -5 -5 -5 ----------- Run | Yrd Mat Mat Mat Fac DSF Gar Fac DSF Fac Was Fac Matter Collected . | . . . . . . . . . . . . Remotely . | . . . . . . . . . . . . Salvage Created . | . . . . . . . . . . . . Parts . | . . . . . . . . . . . . Haulers Intercepted . | . . . . . . . . . . . . Recyclers Shooed . | . . . . . . . . . . . . Parts Field Recycled . | . . . . . . . . . . . . Retrieved Matter . | . . . . . . . . . . . . Parts Self-Destructed . | . . . . . . . . . . . . Prevented . | . . . . . . . . . . . . Kills | -11 -10 -9 -8 -7 -7 -7 -6 -6 -5 -5 -5 ------- Run | Yrd Mat Mat Mat Fac DSF Gar Fac DSF Fac Was Fac Combat Hostiles Destroyed . | . . . . . . . . . . . . Classes Destroyed . | . . . . . . . . . . . . Best Kill Streak . | . . . . . . . . . . . . Combat Bots Only . | . . . . . . . . . . . . Max Kills in Single Turn . | . . . . . . . . . . . . Gunslinging . | . . . . . . . . . . . . Exploded . | . . . . . . . . . . . . Melee . | . . . . . . . . . . . . Uniques/NPCs Destroyed . | . . . . . . . . . . . . Combat | -11 -10 -9 -8 -7 -7 -7 -6 -6 -5 -5 -5 -------- Run | Yrd Mat Mat Mat Fac DSF Gar Fac DSF Fac Was Fac Hostile Shots Fired 210 | . . 12 28 . 2 56 . 25 47 6 34 Missed 89 | . . 4 12 . 1 26 . 7 24 2 13 Damage Taken 2420 | . . 74 239 . 53 466 . 579 418 176 415 Core 2420 | . . 74 239 . 53 466 . 579 418 176 415 Absorbed by Shields 44 | . . . . . . . . 44 . . . Core Remaining (%) 65 | 100 100 81 56 . . 25 . 31 . . . Volleys Fired . | . . . . . . . . . . . . Largest . | . . . . . . . . . . . . Hottest . | . . . . . . . . . . . . Shots Fired . | . . . . . . . . . . . . Gun . | . . . . . . . . . . . . Cannon . | . . . . . . . . . . . . Launcher . | . . . . . . . . . . . . Special . | . . . . . . . . . . . . Kinetic . | . . . . . . . . . . . . Thermal . | . . . . . . . . . . . . Explosive . | . . . . . . . . . . . . Electromagnetic . | . . . . . . . . . . . . Robot Hit Streak . | . . . . . . . . . . . . Robot Miss Streak . | . . . . . . . . . . . . Penetration Max . | . . . . . . . . . . . . Secondary Targets . | . . . . . . . . . . . . Shots Hit Robots . | . . . . . . . . . . . . Core Hits . | . . . . . . . . . . . . Critical Kills . | . . . . . . . . . . . . Critical Parts Destroyed . | . . . . . . . . . . . . Critical Strikes . | . . . . . . . . . . . . Melee Attacks . | . . . . . . . . . . . . Impact . | . . . . . . . . . . . . Slashing . | . . . . . . . . . . . . Piercing . | . . . . . . . . . . . . Sneak Attacks . | . . . . . . . . . . . . Combat Hostiles . | . . . . . . . . . . . . Follow-up Attacks . | . . . . . . . . . . . . Damage Inflicted 9 | . 1 3 . . . . . . 5 . . Guns . | . . . . . . . . . . . . Cannons . | . . . . . . . . . . . . Explosions . | . . . . . . . . . . . . Melee . | . . . . . . . . . . . . Ramming 9 | . 1 3 . . . . . . 5 . . Kinetic . | . . . . . . . . . . . . Thermal . | . . . . . . . . . . . . Explosive . | . . . . . . . . . . . . Electromagnetic . | . . . . . . . . . . . . Impact . | . . . . . . . . . . . . Slashing . | . . . . . . . . . . . . Piercing . | . . . . . . . . . . . . Highest Corruption . | . . . . . . . . . . . . Average Corruption . | . . . . . . . . . . . . Corruption Purged . | . . . . . . . . . . . . Corruption Blocked . | . . . . . . . . . . . . Overload Shots . | . . . . . . . . . . . . Overflow Damage . | . . . . . . . . . . . . Projectiles . | . . . . . . . . . . . . Explosions . | . . . . . . . . . . . . Melee . | . . . . . . . . . . . . Knockbacks . | . . . . . . . . . . . . Impact . | . . . . . . . . . . . . Kinetic . | . . . . . . . . . . . . Secondary . | . . . . . . . . . . . . Self-Inflicted Damage 3 | . . 1 . . . . . . 2 . . Shots . | . . . . . . . . . . . . Rammed 3 | . 1 1 . . . . . . 1 . . Targets Rammed 3 | . 1 1 . . . . . . 1 . . Kicked . | . . . . . . . . . . . . Crushed . | . . . . . . . . . . . . Highest Temperature 20 | . . . . . . 20 . . . . . Average Temperature 20 | . . . . . . 20 . . . . . Received Heat Transfer 324 | . . 30 108 . . 63 . . 114 . 9 Siege Activations . | . . . . . . . . . . . . Robots Corrupted . | . . . . . . . . . . . . Combat Hostiles . | . . . . . . . . . . . . Parts Fried . | . . . . . . . . . . . . Impact Corruptions . | . . . . . . . . . . . . Robots Melted . | . . . . . . . . . . . . Combat Hostiles . | . . . . . . . . . . . . Parts Melted . | . . . . . . . . . . . . Heat Transferred . | . . . . . . . . . . . . Parts Sabotaged . | . . . . . . . . . . . . Parts Stolen . | . . . . . . . . . . . . Parts Stripped . | . . . . . . . . . . . . Power Chain Reactions . | . . . . . . . . . . . . Alert | -11 -10 -9 -8 -7 -7 -7 -6 -6 -5 -5 -5 ------- Run | Yrd Mat Mat Mat Fac DSF Gar Fac DSF Fac Was Fac Peak Influence 226 | . 15 20 64 56 42 226 123 86 94 32 148 Initial 118 | . . 5 8 28 42 31 118 86 44 32 8 Average 53 | . 5 9 36 37 42 97 118 86 70 28 89 Maximum Alert Level 1 | . . . . . . 1 . . . . . Low Security (%) 98 | 100 100 100 100 100 100 91 100 100 100 100 100 Level 1 1 | . . . . . . 8 . . . . . Level 2 . | . . . . . . . . . . . . Level 3 . | . . . . . . . . . . . . Level 4 . | . . . . . . . . . . . . Level 5 . | . . . . . . . . . . . . High Security . | . . . . . . . . . . . . Max Security . | . . . . . . . . . . . . Squads Dispatched 10 | . . 2 2 . . . 1 1 2 . 2 Investigation 6 | . . 1 1 . . . 1 . 2 . 1 Extermination . | . . . . . . . . . . . . Reinforcement 4 | . . 1 1 . . . . 1 . . 1 Assault . | . . . . . . . . . . . . Garrison . | . . . . . . . . . . . . Intercept . | . . . . . . . . . . . . Searches Triggered . | . . . . . . . . . . . . Construction Impeded . | . . . . . . . . . . . . Haulers Reinforced . | . . . . . . . . . . . . Active Scanning Responses . | . . . . . . . . . . . . Cargo Convoy Interrupts . | . . . . . . . . . . . . Stealth | -11 -10 -9 -8 -7 -7 -7 -6 -6 -5 -5 -5 --------- Run | Yrd Mat Mat Mat Fac DSF Gar Fac DSF Fac Was Fac Distress Signals 5 | . . 1 1 . . . . . 1 . 2 Communications Jammed . | . . . . . . . . . . . . Distress Signals . | . . . . . . . . . . . . Times Spotted 75 | . 1 9 14 . 1 16 . 5 9 6 14 Peak Tracking Total 14 | . 1 9 14 . 2 11 . 5 9 6 10 Tactical Retreats 4 | . . . . . . 3 . . . . 1 Traps | -11 -10 -9 -8 -7 -7 -7 -6 -6 -5 -5 -5 ------- Run | Yrd Mat Mat Mat Fac DSF Gar Fac DSF Fac Was Fac Traps Triggered 3 | . . 1 . . . . . 1 1 . . Indirectly . | . . . . . . . . . . . . Trap Hack Attempts . | . . . . . . . . . . . . Triggered . | . . . . . . . . . . . . Disarmed . | . . . . . . . . . . . . Reprogrammed . | . . . . . . . . . . . . Reused . | . . . . . . . . . . . . Traps Extracted . | . . . . . . . . . . . . Installed . | . . . . . . . . . . . . Triggered . | . . . . . . . . . . . . Machines | -11 -10 -9 -8 -7 -7 -7 -6 -6 -5 -5 -5 ---------- Run | Yrd Mat Mat Mat Fac DSF Gar Fac DSF Fac Was Fac Machines Disabled . | . . . . . . . . . . . . Max in Single Turn . | . . . . . . . . . . . . Machines Repaired . | . . . . . . . . . . . . Machines Dismantled . | . . . . . . . . . . . . Machines Sabotaged . | . . . . . . . . . . . . Overloaded Fab Kills 3 | . . . . . . . . . . . 3 Hacking | -11 -10 -9 -8 -7 -7 -7 -6 -6 -5 -5 -5 --------- Run | Yrd Mat Mat Mat Fac DSF Gar Fac DSF Fac Was Fac Machines Accessed 13 | . . 1 5 2 . . 2 . 2 . 1 Terminals 11 | . . 1 5 2 . . 2 . 1 . . Fabricators 2 | . . . . . . . . . 1 . 1 Repair Stations . | . . . . . . . . . . . . Recycling Units . | . . . . . . . . . . . . Scanalyzers . | . . . . . . . . . . . . Garrison Access . | . . . . . . . . . . . . Total Hacks 40 | . . 2 21 6 . . 4 . 5 . 2 Successful 20 | . . 1 12 3 . . 1 . 2 . 1 Failed 20 | . . 1 9 3 . . 3 . 3 . 1 Catastrophic 3 | . . 1 1 . . . 1 . . . . Database Lockouts . | . . . . . . . . . . . . Manual 29 | . . . 19 4 . . . . 4 . 2 Terminals 36 | . . 2 21 6 . . 4 . 3 . . Fabricators 4 | . . . . . . . . . 2 . 2 Repair Stations . | . . . . . . . . . . . . Recycling Units . | . . . . . . . . . . . . Scanalyzers . | . . . . . . . . . . . . Garrison Access . | . . . . . . . . . . . . Terminal Hacks 7 | . . 1 4 1 . . 1 . . . . Open DSF 2 | . . . . 1 . . 1 . . . . Terminal Index 1 | . . . 1 . . . . . . . . Zone Layout 4 | . . 1 3 . . . . . . . . Fabricator Hacks 1 | . . . . . . . . . 1 . . Network Status 1 | . . . . . . . . . 1 . . Repair Station Hacks . | . . . . . . . . . . . . Recycling Unit Hacks . | . . . . . . . . . . . . Scanalyzer . | . . . . . . . . . . . . Garrison Access Hacks . | . . . . . . . . . . . . Unauthorized Hacks 12 | . . . 8 2 . . . . 1 . 1 Terminals 10 | . . . 8 2 . . . . . . . Assimilate 1 | . . . 1 . . . . . . . . Botnet 4 | . . . 3 1 . . . . . . . Skim 5 | . . . 4 1 . . . . . . . Fabricators 2 | . . . . . . . . . 1 . 1 Overload 2 | . . . . . . . . . 1 . 1 Repair Stations . | . . . . . . . . . . . . Recycling Units . | . . . . . . . . . . . . Scanalyzers . | . . . . . . . . . . . . Garrison Access . | . . . . . . . . . . . . Data Cores Recovered . | . . . . . . . . . . . . Used . | . . . . . . . . . . . . Hacking Detections 10 | . . 1 5 1 . . 1 . 2 . . Full Trace Events 3 | . . . 1 . . . 1 . 1 . . Feedback Events . | . . . . . . . . . . . . Feedback Blocked . | . . . . . . . . . . . . Robot Schematics Acquired . | . . . . . . . . . . . . Robots Built . | . . . . . . . . . . . . Authchips . | . . . . . . . . . . . . Time . | . . . . . . . . . . . . Total Robot Build Rating . | . . . . . . . . . . . . Part Schematics Acquired . | . . . . . . . . . . . . Parts Built . | . . . . . . . . . . . . Authchips . | . . . . . . . . . . . . Time . | . . . . . . . . . . . . Total Part Build Rating . | . . . . . . . . . . . . Parts Repaired . | . . . . . . . . . . . . Time . | . . . . . . . . . . . . Parts Recycled . | . . . . . . . . . . . . Recycled Matter . | . . . . . . . . . . . . Retrieved Matter . | . . . . . . . . . . . . Retrieved Components . | . . . . . . . . . . . . Parts Scanalyzed . | . . . . . . . . . . . . Part Schematics Acquired . | . . . . . . . . . . . . Parts Damaged . | . . . . . . . . . . . . Bothacking | -11 -10 -9 -8 -7 -7 -7 -6 -6 -5 -5 -5 ------------ Run | Yrd Mat Mat Mat Fac DSF Gar Fac DSF Fac Was Fac Used RIF Installer . | . . . . . . . . . . . . Robots Hacked . | . . . . . . . . . . . . Non-combat . | . . . . . . . . . . . . Combat . | . . . . . . . . . . . . Robot Hacks Applied . | . . . . . . . . . . . . Relay Couplers Released . | . . . . . . . . . . . . Fabnet Peak Effective % . | . . . . . . . . . . . . Robots Rewired . | . . . . . . . . . . . . Allies Hacked . | . . . . . . . . . . . . Hacks Repelled . | . . . . . . . . . . . . Allies | -11 -10 -9 -8 -7 -7 -7 -6 -6 -5 -5 -5 -------- Run | Yrd Mat Mat Mat Fac DSF Gar Fac DSF Fac Was Fac Total Allies 1 | . . . . . . . . . . 1 . Largest Group 1 | . . . . . . . . . . 1 . Highest-Rated Group 31 | . . . . . . . . . . 31 . Highest-Rated Ally 31 | . . . . . . . . . . 31 . Total Orders . | . . . . . . . . . . . . Ally Attacks 6 | . . . . . . . . . . 6 . Total Damage 86 | . . . . . . . . . . 86 . Kills . | . . . . . . . . . . . . Allies Corrupted . | . . . . . . . . . . . . Allies Melted . | . . . . . . . . . . . . Intel | -11 -10 -9 -8 -7 -7 -7 -6 -6 -5 -5 -5 ------- Run | Yrd Mat Mat Mat Fac DSF Gar Fac DSF Fac Was Fac Robot Analysis Total . | . . . . . . . . . . . . Derelict Logs Recovered . | . . . . . . . . . . . . Drone Launches . | . . . . . . . . . . . . Drone Recoveries . | . . . . . . . . . . . . Exploration | -11 -10 -9 -8 -7 -7 -7 -6 -6 -5 -5 -5 ------------- Run | Yrd Mat Mat Mat Fac DSF Gar Fac DSF Fac Was Fac Turns Passed 626 | 9 52 56 71 61 29 84 11 44 73 67 69 Spaces Moved 1202 | 18 91 109 141 113 57 168 21 75 143 128 138 Core 1202 | 18 91 109 141 113 57 168 21 75 143 128 138 Treads . | . . . . . . . . . . . . Legs . | . . . . . . . . . . . . Wheels . | . . . . . . . . . . . . Hover . | . . . . . . . . . . . . Flight . | . . . . . . . . . . . . Fastest Speed 50 | 50 50 50 50 50 50 50 50 50 50 50 50 Average Speed 50 | 50 50 50 50 50 50 50 50 50 50 50 50 Slowest Speed 50 | 50 50 50 50 50 50 50 50 50 50 50 50 Overloaded Moves . | . . . . . . . . . . . . Propulsion Burnouts . | . . . . . . . . . . . . Robots Hopped . | . . . . . . . . . . . . Cave-ins Triggered . | . . . . . . . . . . . . Exploration Rate (%) 28 | 3 16 17 16 5 67 36 1 87 5 78 7 Regions Visited 11 Branch Regions . Pre-discovered Areas . | . . . . . . . . . . . . Known Exits Taken 2 | . . . . 1 . . 1 . . . . Unknown Exits Taken 4 | 1 1 1 1 . . . . . . . . Scrap Searched . | . . . . . . . . . . . . Spaces Dug . | . . . . . . . . . . . . Terrain Destroyed . | . . . . . . . . . . . . Melee . | . . . . . . . . . . . . Projectile . | . . . . . . . . . . . . AOE . | . . . . . . . . . . . . Terrain Rammed . | . . . . . . . . . . . . Walls Destroyed . | . . . . . . . . . . . . Machines Disabled . | . . . . . . . . . . . . Actions | -11 -10 -9 -8 -7 -7 -7 -6 -6 -5 -5 -5 --------- Run | Yrd Mat Mat Mat Fac DSF Gar Fac DSF Fac Was Fac Total 1212 | 17 96 109 140 116 56 166 20 80 144 130 138 Wait 12 | . 5 . . 4 . . . . . 3 . Move 1191 | 17 90 108 140 112 56 166 20 74 143 127 138 Hop . | . . . . . . . . . . . . Pick Up . | . . . . . . . . . . . . Fast Attach . | . . . . . . . . . . . . Attach . | . . . . . . . . . . . . Detach . | . . . . . . . . . . . . Swap . | . . . . . . . . . . . . Drop . | . . . . . . . . . . . . Fire . | . . . . . . . . . . . . Melee . | . . . . . . . . . . . . Ram 3 | . 1 1 . . . . . . 1 . . Kick . | . . . . . . . . . . . . Crush . | . . . . . . . . . . . . Escape Stasis 4 | . . . . . . . . 4 . . . Rewire 2 | . . . . . . . . 2 . . . Trap . | . . . . . . . . . . . . Miscellaneous . | . . . . . . . . . . . . Route ------- -11/Scrapyard -10/Materials -9/Materials -8/Materials -7/Factory -7/DSF -7/Garrison (discovered 2 exits: *Fac x2) -6/Factory -6/DSF -5/Factory -5/Waste -5/Factory History --------- Turn | Location | Event 4 | -11/Scrapyard | Discovered new exit (range 14) 10 | -11/Scrapyard | Entered Materials 60 | -10/Materials | Discovered new exit (range 4) 62 | -10/Materials | Entered another Materials area 62 | -9/Materials | Evolved 2 slots: Power x2 114 | -9/Materials | Discovered new exit (range 8) 118 | -9/Materials | Entered another Materials area 118 | -8/Materials | Evolved 2 slots: Power x2 183 | -8/Materials | Discovered new exit (range 10) 189 | -8/Materials | Entered Factory 189 | -7/Factory | Evolved 2 slots: Power x2 250 | -7/Factory | Identified exit to DSF 250 | -7/Factory | Entered DSF 271 | -7/DSF | Discovered new exit (range 16) 276 | -7/DSF | Additional patrols routed to DSF 279 | -7/DSF | Entered Garrison 302 | -7/Garrison | Triggered checkpoint 305 | -7/Garrison | Build established: Mutant 316 | -7/Garrison | Discovered new exit (range 10) 320 | -7/Garrison | Attempted to access garrison exit controls, blocked by remote lockdown 338 | -7/Garrison | Core integrity fell below 50% 339 | -7/Garrison | Triggered checkpoint 341 | -7/Garrison | Triggered checkpoint 356 | -7/Garrison | Discovered new exit (range 14) 363 | -7/Garrison | Entered Factory 363 | -6/Factory | Evolved 2 slots: Power x2 373 | -6/Factory | Identified exit to DSF 374 | -6/Factory | Entered DSF 403 | -6/DSF | Additional patrols routed to DSF 405 | -6/DSF | Core integrity fell below 50% 410 | -6/DSF | Discovered new exit (range 16) 418 | -6/DSF | Entered Factory 418 | -5/Factory | Evolved 2 slots: Power x2 491 | -5/Factory | Manually triggered Chute Trap 491 | -5/Factory | Sucked down chute 491 | -5/Factory | Entered Waste 492 | -5/Waste | Met a frightened Derelict 518 | -5/Waste | Spotted C-40 Crusher 518 | -5/Waste | Spotted C-40 Crusher 532 | -5/Waste | Spotted C-40 Crusher 533 | -5/Waste | Spotted C-40 Crusher 535 | -5/Waste | Spotted C-40 Crusher 536 | -5/Waste | Spotted C-40 Crusher 545 | -5/Waste | Core integrity fell below 50% 553 | -5/Waste | Discovered new exit (range 11) 558 | -5/Waste | Entered Factory 604 | -5/Factory | Core integrity fell below 20% 627 | -5/Factory | Destroyed by S-27 Virus with Autogun Last Messages --------------- GOAL=ESCAPE 00563_ Connecting with Fabricator... 00563_ Current location identified: Factory >>Force(Overload) EM_IMPRINTER_OVERLOAD 00563_ ALERT: Suspicious activity at Fabricator F001. Dispatching Investigation squad. 00566_ U-05 Engineer works on Assembly Bed. 00578_ O-24 Administrator: "IFF HANDSHAKE FAILED. SECURING TERMINAL." 00579_ ALERT: All DSF locations entering lockdown mode. 00584_ ALERT: Hostiles spotted, dispatching reinforcements to Terminal F010. 00591_ K-01 Serf cleans the Matter Pump. 00597_ Slug penetrates Wall. 00597_ W-25 Informer sends out distress signal. 00598_ Penetrated by Slug. 00613_ K-01 Serf cleans the Matter Pump. 00620_ W-25 Informer sends out distress signal. Map ----- +----------------------------------------------------+ | ?????????????# +??????????????????????? | | ?????????????# """" #??????????????????????? | | ?????????????# """" #??????????????????????? | | ?????????????# """" #??????????????????????? | | ?????????????# """" #??????????????????????? | | ?????????????# """" #??????????????????????? | | ?????????????+ """" #??????????????????????? | | ?????????????# #??????????????????????? | | ?????????????# #??????????????????????? | | ?????????????# ###/####??????????????????????? | | ?????????????# #?? ????????????????????????? | | ?????????????# #?? ??????????????????????? | | ?????????????# #?? * ?????????????????????? | | ?????######### #?? #???????????????????? | | ? ? # #??"" """ #???????????????????? | | # """ # #???" """?????????????????????? | | # """ # #???" ""??????????????????????? | | #| """ # #???? ???????????????????????? | | # "" # #????##???????????????????????? | | # "" ! + #?????????????????????????????? | | ? "" # #?????????????????????????????? | | ? "" ] # ##############????????????????? | | ? "T ! # # #????????????????? | | ? "" ] # # #????????????????? | | ? "" # # #????????????????? | | # # # s @ #????????????????? | | #+##########+# #s""" """ #????????????????? | | ???????????# s/ """ """ #????????????????? | | ???????????# ^ # """ """ #????????????????? | | ????######?# # #????????????????? | | ????# ! !# """ # """ """ #????????????????? | | ????# # """ # """ """ #????????????????? | | ????#= """ + """ # """ """ #????????????????? | | ????# """ # # ?????????????????????? | | ????#! """ # """ ################??????????????? | | ????# ?# """ ??????????????? | | ????######?# """ ??????????????? | | ?????####### ""????????????????? | | ?????# ""????????????????? | | ?????# ########+##+### ""????????????????? | | ?????# # ! #?? ??????????????????? | | ?????# / ! """ +?????????????????????? | | ?????#### #### === """ #?????????????????????? | | ????????# #??# ] === """ +?????????????????????? | | ????????# #??# === #?????????????????????? | | ????????# #??# / #?????????????????????? | | ????????# #??#######+#######?????????????????????? | | ??????### ###??#" "###### ????????????? | | ??????# ##### ????????????? | | ????### "" % ! ????????????? | +----------------------------------------------------+ Best States ------------- Heat Dissipation 40 Energy Generation 5 Energy Capacity 100 Matter Stores 110 Matter Capacity 300 Sight Range 16 Terrain Scan Density 10 Evasion (%) 50 Item Schematics ----------------- None Robot Schematics ------------------ None Fabricated ------------ Nothing Alien Tech Used ----------------- None Achievements -------------- None Challenges ------------ None Game ------ Seed FocalLargeSystem Manual? 0 Play Time 00:12:09 Cumulative 143.4 hours Start 2024.11.26 @ 13:47:42 End 2024.11.26 @ 13:58:48 Sessions 1 Manual Loads 0 Difficulty Rogue Special Mode None Game No. 135 Rogue 135 Adventurer 0 Explorer 0 Win Type - Total 3 Types 3/0/0/0/0/0/0/0/0 Lore% 54 Gallery% 58 Achievement% 55 Wizard Run 0 Options --------- Layout 1 ASCII 0 Keyboard 1 Movement Arrows Keybinds 0 Fullscreen 0 Font 20/Smallcaps Map View 50x35 Zoom Use 0% Tactical HUD 1 Map Filters NONE Filters NONE Steam 1 RUN: 1b737fa3-c4a5-47bd-9cc8-a4deb1267eea